bitfinex/quotes_SOLUSD_20260208
["timestamp","ask_amount","ask_price","bid_price","bid_amount"]
[1770576792342,11.34957836,88.109,88.079,4.03419686]
[1770576794547,3.15025048,88.11,88.079,4.03419686]
[1770576794747,11.34520041,88.143,88.101,4.03419686]
[1770576795133,5.15033687,88.14,88.101,4.03419686]
[1770576795332,3.11794146,88.139,88.101,4.03419686]
[1770576796637,3.11794146,88.139,88.103,4.19050135]
[1770576796840,14.44166823,88.148,88.111,4.19050135]
[1770576797028,3.09701587,88.147,88.111,4.19050135]
[1770576798051,0.61095082,88.145,88.113,4.19050135]
[1770576798345,11.34358958,88.156,88.121,4.19050135]
[1770576798552,3.086733,88.155,88.121,4.19050135]
[1770576800642,3.086733,88.155,88.123,4.19050135]
[1770576802154,3.04676909,88.162,88.125,4.19050135]
[1770576802342,3.04676909,88.169,88.131,4.19050135]
[1770576802856,10.21848672,88.164,88.131,4.19050135]
[1770576805336,10.21848672,88.164,88.133,4.19050135]
[1770576806659,2.99934245,88.163,88.135,4.19050135]
[1770576806952,2.99934245,88.162,88.135,4.19050135]
[1770576807663,2.99018145,88.159,88.127,15.53775488]
[1770576808739,2.99018145,88.159,88.128,4.19050135]
[1770576808935,7.18142337,88.164,88.141,4.19050135]
[1770576810265,7.18142337,88.164,88.143,4.19050135]
[1770576810646,7.18142337,88.164,88.142,11.34532912]
[1770576810647,0.2,88.19,88.152,4.19050135]
[1770576810944,0.2,88.21,88.181,4.19050135]
[1770576811552,0.2,88.21,88.191,4.19050135]
[1770576812344,0.2,88.21,88.193,4.19050135]
[1770576812763,7.18622057,88.226,88.194,4.19050135]
[1770576812956,7.18622057,88.226,88.201,4.19050135]
[1770576813746,7.18622057,88.226,88.211,4.19050135]
[1770576814063,7.18622057,88.226,88.22,5.15033687]
[1770576814469,0.2,88.24,88.222,4.19050135]
[1770576814657,0.2,88.24,88.23,9.34083822]
[1770576814967,56.62882895,88.295,88.231,4.19050135]
[1770576814968,11.32930335,88.267,88.231,4.19050135]
[1770576815748,4.09267247,88.269,88.231,4.19050135]
[1770576815947,11.32925258,88.268,88.231,4.19050135]
[1770576816147,4.09267247,88.249,88.215,11.33583588]
[1770576816350,4.09267247,88.248,88.221,4.19050135]
[1770576816649,4.09267247,88.248,88.223,4.19050135]
[1770576816846,0.2,88.25,88.231,4.19050135]
[1770576817267,7.17849832,88.294,88.241,4.19050135]
[1770576817268,4.09267247,88.282,88.241,4.19050135]
[1770576817476,11.32592617,88.293,88.212,39.67714142]
[1770576817477,4.09267247,88.249,88.226,4.19050135]
[1770576817647,4.09267247,88.249,88.213,4.19050135]
[1770576817852,4.09267247,88.249,88.212,11.33632612]
[1770576818469,4.09267247,88.249,88.208,4.19050135]
[1770576819356,4.09267247,88.249,88.211,4.19050135]
[1770576820474,4.09267247,88.239,88.207,11.33696872]
[1770576822471,4.09267247,88.259,88.211,4.19050135]
[1770576823180,4.09267247,88.259,88.213,4.19050135]
[1770576824873,3.76448806,88.267,88.231,4.06341174]
[1770576825067,3.76448806,88.259,88.231,4.06341174]
[1770576826374,3.76448806,88.236,88.153,4.06341174]
[1770576826560,3.76448806,88.236,88.12,5.15033687]
[1770576826561,3.76448806,88.199,88.159,4.06341174]
[1770576826766,5.15033687,88.2,88.161,4.06341174]
[1770576826970,3.76448806,88.207,88.161,4.06341174]
[1770576827481,5.15033687,88.2,88.161,4.06341174]
[1770576828579,5.15033687,88.2,88.163,4.06341174]
[1770576828982,3.76448806,88.204,88.163,4.06341174]
[1770576829379,11.33734722,88.205,88.162,11.34275538]
[1770576829380,3.76448806,88.212,88.171,4.06341174]
[1770576830467,3.76448806,88.212,88.181,4.06341174]
[1770576831792,3.76448806,88.199,88.165,4.06341174]
[1770576831977,3.76448806,88.199,88.151,4.06341174]
[1770576832866,3.76448806,88.197,88.151,4.06341174]
[1770576833884,3.76448806,88.189,88.152,15.40745384]
[1770576834188,3.76448806,88.189,88.126,5.13032502]
[1770576834189,3.76448806,88.179,88.143,4.06341174]
[1770576834485,3.76448806,88.169,88.131,11.34663515]
[1770576834984,3.76448806,88.169,88.132,4.06341174]
[1770576835477,3.76448806,88.149,88.12,0.1]
[1770576836288,3.76448806,88.129,88.084,4.06341174]
[1770576836583,3.76448806,88.109,88.081,11.35317672]
[1770576837076,3.76448806,88.109,88.071,4.06341174]
[1770576837077,3.76448806,88.109,88.072,4.06341174]
[1770576837288,3.76448806,88.097,88.063,4.06341174]
[1770576837468,3.76448806,88.097,88.061,11.35571382]
[1770576838478,3.76448806,88.097,88.06,1e-08]
[1770576838669,3.76448806,88.089,88.06,1e-08]
[1770576839063,3.76448806,88.089,88.06,13.77839518]
[1770576839264,3.76448806,88.089,88.06,1e-08]
[1770576839482,3.76448806,88.079,88.06,1e-08]
[1770576839986,3.76448806,88.069,88.06,1e-08]
[1770576840294,3.76448806,88.069,88.022,0.2485166]
[1770576840495,3.2790774,88.059,88.022,0.2485166]
[1770576841475,3.2790774,88.059,88.023,11.36066709]
[1770576841879,13.77839517,88.05,88.022,0.2485166]
[1770576842176,13.77839517,88.04,88.014,11.36174404]
[1770576842382,2.85406669,88.039,88.01,0.1]
[1770576844296,7.17415391,88.064,88.0,13.87839517]
[1770576844297,2.67742113,88.031,88.0,0.1]
[1770576844594,13.77839517,88.04,88.002,4.06341174]
[1770576844794,16.46729273,88.04,88.002,4.06341174]
[1770576845092,2.68889756,88.055,88.011,4.06341174]
[1770576845276,2.68889756,88.039,88.007,11.3627325]
[1770576845481,2.7006268,88.019,87.981,4.06341174]
[1770576845682,2.6006268,88.009,87.972,4.06341174]
[1770576846279,2.6006268,88.009,87.98,11.46612287]
[1770576846991,2.6006268,88.009,87.98,0.1]
[1770576847195,13.77839517,87.99,87.97,0.1]
[1770576847485,13.77839517,88.01,87.974,4.06341174]
[1770576848195,11.36155204,88.017,87.974,4.06341174]
[1770576848399,5.62485615,88.019,88.001,4.06341174]
[1770576850202,2.5479483,88.009,87.978,11.36645584]
[1770576850395,2.5479483,88.009,87.978,15.42986758]
[1770576851200,2.55954871,87.999,87.97,0.1]
[1770576851884,2.57099718,88.008,87.971,4.06341174]
[1770576852084,2.57099718,88.008,87.972,15.43066495]
[1770576852301,2.57099718,88.037,88.001,4.06341174]
[1770576852509,2.58220503,88.069,88.001,4.06341174]
[1770576852803,2.58220503,88.069,88.03,13.77839517]
[1770576853181,13.77839517,88.06,88.013,4.06341174]
[1770576853505,13.77839517,88.05,88.013,4.06341174]
[1770576853794,2.59328415,88.059,88.03,13.77839517]
[1770576854180,2.59328415,88.059,88.031,11.35963467]
[1770576854995,2.61506209,88.071,88.04,13.77839517]
[1770576855198,2.61506209,88.071,88.04,17.93901118]
[1770576855686,2.61506209,88.071,88.04,13.77839517]
[1770576856083,9.81203533,88.074,88.041,15.51896041]
[1770576856283,2.63634261,88.073,88.041,11.3583444]
[1770576858401,2.65713709,88.072,88.04,25.13676912]
[1770576859097,2.66735554,88.069,88.023,4.16061601]
[1770576859396,2.66735554,88.059,88.023,4.16061601]
[1770576859795,2.66735554,88.059,88.03,13.77839517]
[1770576860184,13.77839517,88.07,87.986,5.13032502]
[1770576860185,2.67745662,88.057,88.02,13.77839517]
[1770576860492,2.67745662,88.057,88.014,4.16061601]
[1770576860686,2.68744168,88.049,88.01,13.77839517]
[1770576862312,2.69731205,88.029,87.99,13.77839517]
[1770576862514,2.69731205,88.029,87.991,4.16061601]
[1770576863089,2.69731205,88.029,87.991,15.52529384]
[1770576863611,2.69731205,88.029,87.992,4.16061601]
[1770576863801,39.75104487,88.048,88.002,4.16061601]
[1770576863802,13.77839517,88.04,88.002,4.16061601]
[1770576864003,14.07208904,88.065,88.03,17.93901118]
[1770576864204,11.35550685,88.063,88.03,17.93901118]
[1770576864714,2.72624814,88.062,88.021,11.36088776]
[1770576864913,2.72624814,88.062,88.022,4.16061601]
[1770576865518,2.73567278,88.059,88.022,4.16061601]
[1770576866412,11.35615162,88.058,88.027,4.16061601]
[1770576866793,11.35537185,88.065,88.031,4.16061601]
[1770576867812,11.35439352,88.072,88.031,4.16061601]
[1770576869703,14.12669472,88.072,88.033,4.16061601]
[1770576870510,11.35439352,88.072,88.033,4.16061601]
[1770576870712,14.1355904,88.072,88.033,4.16061601]
[1770576870918,2.78119688,88.069,88.033,4.16061601]
[1770576872719,11.35486215,88.068,88.034,11.35924756]
[1770576872910,11.35486215,88.068,88.034,15.51986357]
[1770576873305,2.79868288,88.067,88.034,15.51986357]
[1770576873705,2.79868288,88.067,88.035,4.16061601]
[1770576874919,11.35512002,88.066,88.035,4.16061601]
[1770576875216,2.8157695,88.065,88.028,4.16061601]
[1770576875422,2.8157695,88.059,88.028,4.16061601]
[1770576875717,2.8157695,88.059,88.029,4.16061601]
[1770576878321,11.35512002,88.066,88.031,4.16061601]
[1770576879429,11.35446552,88.072,88.031,4.16061601]
[1770576879810,7.16531229,88.075,88.041,4.16061601]
[1770576881425,7.16531229,88.075,88.043,4.16061601]
[1770576881426,14.21881186,88.074,88.043,4.16061601]
[1770576881929,11.3540886,88.074,88.043,4.16061601]
[1770576882535,7.16531229,88.075,88.045,4.16061601]
[1770576882730,2.88030152,88.074,88.045,4.16061601]
[1770576883029,16.65869669,88.06,88.032,11.35948028]
[1770576883233,2.88030152,88.059,88.032,11.35948028]
[1770576883539,2.88030152,88.059,87.995,5.13032502]
[1770576883540,2.88681174,88.039,88.009,4.16061601]
[1770576884515,2.88681174,88.037,88.009,4.16061601]
[1770576885417,2.88681174,88.037,88.009,15.52303351]
[1770576885826,2.88681174,88.037,88.01,4.14545671]
[1770576886634,11.3589895,88.036,88.01,4.14545671]
[1770576887630,2.88681174,88.035,88.004,11.36301174]
[1770576887815,16.66520691,88.03,88.004,11.36301174]
[1770576888535,16.66520691,88.03,88.008,11.36258244]
[1770576888836,16.66520691,88.03,87.979,56.83152079]
[1770576888837,7.17469572,88.05,88.021,4.14545671]
[1770576890014,7.17469572,88.05,88.002,39.77182336]
[1770576890015,1e-08,88.05,88.032,4.14545671]
[1770576890242,1e-08,88.05,88.041,4.14545671]
[1770576890537,4.30514706,88.05,88.021,4.14545671]
[1770576890712,4.30514706,88.05,88.022,11.36079616]
[1770576890912,4.30514706,88.05,88.023,4.14545671]
[1770576891921,4.30514706,88.05,88.024,11.36053803]
[1770576892123,4.30514706,88.05,88.024,15.50599474]
[1770576894238,4.30514706,88.05,88.025,4.14545671]
[1770576894640,4.30514706,88.05,88.026,11.36027991]
[1770576895838,4.30514706,88.05,88.026,15.50573662]
[1770576900652,4.30514706,88.05,88.026,4.14545671]
[1770576900950,4.30514705,88.039,87.996,4.14545671]
[1770576901149,4.30514705,88.029,87.996,4.14545671]
[1770576901353,4.30514705,88.019,87.995,11.36423369]
[1770576901735,4.30514705,88.009,87.974,11.36694992]
[1770576902049,4.30514705,88.029,87.997,4.14545671]
[1770576902651,4.30514705,88.027,87.997,4.14545671]
[1770576902826,4.30514705,88.045,87.999,4.14545671]
[1770576903031,4.30514705,88.045,88.011,4.14545671]
[1770576904225,4.30514705,88.045,88.012,11.36208698]
[1770576904441,4.30514705,88.045,88.013,4.14545671]
[1770576904642,4.30514705,88.039,88.012,11.36208698]
[1770576906421,4.30514705,88.039,88.007,4.14545671]
[1770576906627,4.30514705,88.039,88.01,13.82038882]
[1770576907127,4.30514705,88.039,88.011,4.14545671]
[1770576907846,4.30514705,88.045,88.011,4.14545671]
[1770576911353,11.35782838,88.045,88.012,11.36208698]
[1770576911553,4.30514705,88.044,88.013,4.14545671]
[1770576914154,7.16990987,88.046,88.015,4.14545671]
[1770576914670,11.47505692,88.046,88.015,4.14545671]
[1770576914950,7.16990987,88.046,88.015,4.14545671]
[1770576915249,7.16990987,88.046,88.021,4.22600204]
[1770576917160,7.16990987,88.046,88.023,4.22600204]
[1770576918057,7.16990987,88.046,88.024,11.36053803]
[1770576918358,7.16990987,88.046,88.025,4.22600204]
[1770576920352,4.33499201,88.045,88.024,11.36053803]
[1770576920544,4.33499201,88.045,88.026,11.36027991]
[1770576920855,7.16990987,88.046,88.027,4.22600204]
[1770576921237,7.16990987,88.046,88.03,5.1594232]
[1770576921433,7.16990987,88.046,88.031,4.22600204]
[1770576921641,7.16990987,88.046,88.026,11.36027991]
[1770576922047,4.33499201,88.045,88.026,11.36027991]
[1770576922858,4.29164208,88.039,87.991,4.22600204]
[1770576924858,4.29164208,88.037,87.993,4.22600204]
[1770576926463,4.29164208,88.035,87.995,4.22600204]
[1770576929371,4.29164208,88.033,88.001,4.22600204]
[1770576932771,4.29164208,88.031,88.001,4.22600204]
[1770576934164,4.29164208,88.029,87.99,15.59087732]
[1770576934366,4.29164208,88.019,87.99,15.59087732]
[1770576934568,4.29164208,88.019,87.99,4.22600204]
[1770576934769,4.29164208,88.009,87.981,4.22600204]
[1770576936783,4.29164208,88.008,87.981,4.22600204]
[1770576937081,11.36254842,88.009,87.983,4.22600204]
[1770576937369,4.29164208,88.008,87.983,4.22600204]
[1770576940673,4.29164208,88.014,87.983,4.22600204]
[1770576940875,5.1594232,88.01,87.983,4.22600204]
[1770576941055,4.29164208,88.009,87.983,4.22600204]
[1770576941453,11.35873145,88.038,88.001,4.22600204]
[1770576941770,7.16783628,88.039,88.001,4.22600204]
[1770576941979,18.52646623,88.039,88.001,4.22600204]
[1770576942272,7.16783628,88.039,88.001,4.22600204]
[1770576942480,7.16783628,88.039,88.011,4.22600204]
[1770576942661,7.16783628,88.039,88.012,4.22600204]
[1770576943760,7.16783628,88.039,88.014,4.22600204]
[1770576946888,7.16783628,88.039,88.015,11.36169971]
[1770576947076,7.16783628,88.039,88.016,4.4310457]
[1770576948479,4.11488336,88.029,87.997,4.4310457]
[1770576949682,5.1594232,88.02,87.997,4.4310457]
[1770576949868,4.11488336,88.029,87.997,4.4310457]
[1770576950380,11.35989276,88.029,87.998,11.36389463]
[1770576950577,7.16783628,88.039,88.001,4.4310457]
[1770576951373,18.52644022,88.039,88.001,4.4310457]
[1770576951778,22.64132358,88.039,88.001,4.4310457]
[1770576952878,22.64132358,88.039,88.003,4.4310457]
[1770576954862,7.16783628,88.039,88.012,4.4310457]
[1770576955258,11.35873145,88.038,88.012,4.4310457]
[1770576956083,7.16783628,88.039,88.012,4.4310457]
[1770576956283,4.11488336,88.038,88.012,4.4310457]
[1770576957688,11.35886047,88.037,88.012,4.4310457]
[1770576957986,4.11488336,88.036,88.012,4.4310457]
[1770576959191,11.35911853,88.035,88.012,4.4310457]
[1770576959382,4.11488336,88.036,88.012,4.4310457]
[1770576959690,7.16783628,88.039,88.012,4.4310457]
[1770576960291,4.11488336,88.038,88.014,4.4310457]
[1770576961181,4.11488336,88.038,88.001,4.4310457]
[1770576961378,4.11488336,88.037,88.004,4.4310457]
[1770576962688,4.11488336,88.037,88.01,4.4310457]
[1770576963283,2.66783628,88.039,88.012,4.4310457]
[1770576963473,6.78271964,88.039,88.012,4.4310457]
[1770576963668,2.66783628,88.039,88.012,4.4310457]
[1770576963874,2.66783628,88.039,88.021,4.4310457]
[1770576965281,2.66783628,88.039,88.022,11.36079616]
[1770576965577,2.66783628,88.039,88.023,4.4310457]
[1770576965792,1e-08,88.05,88.031,4.4310457]
[1770576968810,1e-08,88.05,88.024,4.4310457]
[1770576968987,4.11488336,88.049,88.014,11.3617729]
[1770576970200,4.11488336,88.049,88.018,11.36120977]
[1770576971202,4.11488336,88.047,88.018,11.36120977]
[1770576972507,4.11488336,88.047,88.014,11.36182879]
[1770576973593,4.11488336,88.045,88.009,15.79341659]
[1770576973902,4.11488336,88.045,88.01,4.4310457]
[1770576974105,1e-08,88.05,88.021,4.4310457]
[1770576975212,1e-08,88.05,88.023,4.45957269]
[1770576977185,1e-08,88.05,88.031,4.45957269]
[1770576979498,1e-08,88.05,88.033,4.45957269]
[1770576984796,4.32964889,88.089,88.042,4.45957269]
[1770576984993,4.32964889,88.089,88.051,4.45957269]
[1770576985914,4.32964889,88.089,88.061,4.45957269]
[1770576986109,4.32964889,88.095,88.061,4.45957269]
[1770576986419,4.32964889,88.092,88.06,4.45957269]
[1770576989124,4.32964889,88.09,88.06,4.45957269]
[1770576989312,4.32964889,88.089,88.054,4.45957269]
[1770576990217,4.32964889,88.089,88.056,4.45957269]
[1770576990723,4.32964889,88.089,88.06,4.45957269]
[1770576994627,4.32964889,88.092,88.062,4.45957269]
[1770576998555,4.32964889,88.09,88.062,4.45957269]
[1770576998855,4.32964889,88.09,88.064,4.45957269]
[1770577000635,4.32964889,88.09,88.065,11.35524896]
[1770577000947,4.32964889,88.09,88.066,4.45957269]
[1770577001452,4.32964889,88.088,88.066,4.45957269]
[1770577007668,4.32964889,88.088,88.06,4.39809574]
[1770577007854,4.17782345,88.086,88.06,4.39809574]
[1770577010447,11.35267071,88.085,88.054,11.35666749]
[1770577010676,4.17782345,88.069,88.02,5.16190299]
[1770577010859,4.17782345,88.069,88.03,5.16190299]
[1770577011942,4.17782345,88.069,88.036,11.35887227]
[1770577012348,39.73434749,88.085,88.006,28.40693756]
[1770577012349,4.17782345,88.049,88.006,28.40693756]
[1770577012557,4.17782345,88.049,88.011,11.36221608]
[1770577012754,4.17782345,88.049,88.012,4.39809574]
[1770577013872,4.17782345,88.061,88.031,4.39809574]
[1770577014059,4.17782345,88.059,88.021,4.39809574]
[1770577014259,4.17782345,88.059,88.012,4.39809574]
[1770577014773,4.17782345,88.049,88.012,4.39809574]
[1770577014951,4.17782345,88.049,88.014,4.39809574]
[1770577016879,4.17782345,88.049,88.021,4.39809574]
[1770577018873,4.17782345,88.047,88.021,4.39809574]
[1770577020479,4.17782345,88.068,88.023,4.39809574]
[1770577020669,4.17782345,88.078,88.031,4.39809574]
[1770577021067,4.17782345,88.059,88.025,4.39809574]
[1770577021992,5.1609293,88.08,88.017,4.39809574]
[1770577021993,4.17782345,88.049,88.017,4.39809574]
[1770577023282,4.17782345,88.049,88.02,4.39809574]
[1770577025076,4.17782345,88.049,88.022,4.39809574]
[1770577025379,4.17782345,88.059,88.022,4.39809574]
[1770577026173,4.17782345,88.059,88.024,4.39809574]
[1770577027489,11.35460728,88.07,88.031,4.39809574]
[1770577028561,11.35460728,88.07,88.033,4.39809574]
[1770577029575,4.17782345,88.072,88.033,4.39809574]
[1770577029886,4.17782345,88.089,88.051,4.39809574]
[1770577033685,4.17782345,88.069,88.041,11.35825679]
[1770577033881,4.17782345,88.069,88.042,4.39809574]
[1770577034893,4.04963361,88.067,88.036,4.39809574]
[1770577035087,4.04963361,88.067,88.037,11.35886047]
[1770577037271,4.04963361,88.067,88.037,15.59139602]
[1770577038171,4.04963361,88.067,88.038,4.23253555]
[1770577039989,4.04963361,88.065,88.038,4.23253555]
[1770577041398,4.04963361,88.065,88.039,4.23253555]
[1770577043200,4.04963361,88.076,88.041,4.23253555]
[1770577043409,4.04963361,88.069,88.035,11.35909727]
[1770577044201,4.04963361,88.069,88.039,11.35854851]
[1770577044397,4.04963361,88.069,88.04,4.23253555]
[1770577044698,4.04963361,88.079,88.041,4.23253555]
[1770577046609,4.04963361,88.069,88.041,4.23253555]
[1770577046797,4.04963361,88.069,88.035,4.23253555]
[1770577047099,4.04963361,88.069,88.038,11.35869891]
[1770577048783,4.04963361,88.069,88.039,4.23253555]
[1770577049803,4.04963361,88.069,88.04,11.35847342]
[1770577050005,4.04963361,88.069,88.04,15.59100897]
[1770577050302,4.04963361,88.069,88.041,4.23253555]
[1770577054502,4.04963361,88.075,88.043,4.23253555]
[1770577055084,4.04963361,88.073,88.043,4.23253555]
[1770577056992,4.04963361,88.071,88.037,15.59130357]
[1770577057193,4.04963361,88.069,88.037,15.59130357]
[1770577057912,4.04963361,88.069,88.037,11.35876802]
[1770577058120,4.04963361,88.069,88.031,4.23253555]
[1770577058293,4.04963361,88.069,88.036,11.35898234]
[1770577058493,4.04963361,88.069,88.037,4.23253555]
[1770577059300,4.04963361,88.067,88.037,4.23253555]
[1770577059494,4.04963361,88.067,88.036,11.35898234]
[1770577059695,4.04963361,88.067,88.038,11.35873145]
[1770577060915,4.04963361,88.067,88.038,15.591267]
[1770577061115,4.04963361,88.067,88.039,4.23253555]
[1770577063922,4.04963361,88.067,88.031,22.98362502]
[1770577063923,4.04963361,88.067,88.041,4.23253555]
[1770577065823,4.08792027,88.065,88.041,4.23253555]
[1770577068726,4.08792027,88.078,88.043,4.22218626]
[1770577069828,4.08792027,88.076,88.043,4.22218626]
[1770577070327,4.08792027,88.076,88.044,15.58014364]
[1770577070535,4.08792027,88.076,88.045,4.22218626]
[1770577072026,4.08792027,88.074,88.045,4.22218626]
[1770577072526,4.08792027,88.074,88.046,11.35769938]
[1770577072832,4.08792027,88.074,88.046,15.57988564]
[1770577073634,4.08792027,88.074,88.047,4.22218626]
[1770577077429,4.08792027,88.072,88.041,4.22218626]
[1770577080944,4.08792027,88.07,88.041,4.22218626]
[1770577081633,11.35447536,88.071,88.041,4.22218626]
[1770577082133,4.08792027,88.071,88.041,4.22218626]
[1770577082727,4.08792027,88.071,88.036,4.22218626]
[1770577084447,4.08792027,88.069,88.04,4.22218626]
[1770577084747,11.35460429,88.07,88.04,4.22218626]
[1770577085147,15.44252456,88.07,88.04,4.22218626]
[1770577085350,4.08792027,88.069,88.04,4.22218626]
[1770577088157,11.35486215,88.068,88.04,4.22218626]
[1770577088358,4.08792027,88.067,88.04,4.22218626]
[1770577090644,11.35486215,88.068,88.04,4.22218626]
[1770577090645,11.35486215,88.068,88.042,4.22218626]
[1770577092763,4.08792027,88.068,88.042,4.22218626]
[1770577097947,4.3125399,88.066,87.997,3.95863234]
[1770577098150,96.51742422,88.067,87.985,3.95863234]
[1770577098151,4.3125399,88.019,87.985,3.95863234]
[1770577098563,38.78178328,88.065,87.982,11.36596121]
[1770577098564,4.3125399,88.027,88.001,3.95863234]
[1770577098754,4.3125399,88.039,88.001,3.95863234]
[1770577100157,4.3125399,88.037,88.001,3.95863234]
[1770577102758,4.3125399,88.035,88.001,3.95863234]
[1770577105270,4.3125399,88.029,88.001,3.95863234]
[1770577108279,11.35924756,88.034,87.983,11.36578276]
[1770577108280,4.3125399,88.019,87.983,11.36578276]
[1770577108470,4.3125399,88.019,87.981,3.95863234]
[1770577109276,4.3125399,88.019,87.982,3.95863234]
[1770577111684,4.3125399,88.017,87.982,3.95863234]
[1770577113575,4.3125399,88.015,87.982,3.95863234]
[1770577115787,4.3125399,88.013,87.982,3.95863234]
[1770577116777,4.3125399,88.011,87.982,3.95863234]
[1770577118360,4.3125399,88.009,87.982,3.95863234]
[1770577119283,4.3125399,88.014,87.991,3.95863234]
[1770577121176,4.3125399,88.012,87.991,3.95863234]
[1770577121783,4.3125399,88.012,87.981,3.95863234]
[1770577122474,4.3125399,88.012,87.988,3.95863234]
[1770577123082,4.3125399,88.012,87.981,11.3660904]
[1770577123384,4.3125399,88.012,87.982,3.95863234]
[1770577125186,4.3125399,88.012,87.984,3.96797962]
[1770577126264,4.3125399,88.012,87.986,3.96797962]
[1770577127380,4.3125399,88.012,87.987,11.36531533]
[1770577127586,4.3125399,88.012,87.988,3.96797962]
[1770577128381,4.01207127,88.021,87.988,3.96797962]
[1770577128571,4.01207127,88.029,88.0,5.15768977]
[1770577128772,4.01207127,88.029,88.001,3.96797962]
[1770577141078,4.01207127,88.027,87.991,10.6]
[1770577141285,4.01207127,88.009,87.979,11.36633573]
[1770577141493,4.01207127,88.009,87.972,3.96797962]
[1770577141690,4.01207127,87.999,87.968,11.36767023]
[1770577142012,4.01207127,87.989,87.958,11.3689369]
[1770577145997,4.01207127,87.987,87.958,11.3689369]
[1770577146300,4.01207127,87.987,87.957,3.96797962]
[1770577147100,4.01207127,87.979,87.961,1.13532602]
[1770577147290,3.67449062,87.969,87.955,0.12865105]
[1770577148495,14.70286651,87.972,87.955,0.12865105]
[1770577149307,3.33548838,87.971,87.955,0.12865105]
[1770577150610,3.33409926,87.969,87.955,0.12865105]
[1770577151984,3.33341665,87.975,87.955,0.12865105]
[1770577152184,5.16265574,87.97,87.955,0.12865105]
[1770577154403,3.32748527,87.971,87.955,0.12865105]
[1770577154607,3.31582611,87.969,87.95,0.1]
[1770577154801,3.31582611,87.969,87.93,0.1]
[1770577154802,3.08717506,87.949,87.93,0.1]
[1770577155308,2.97578219,87.939,87.91,4.18506492]
[1770577155488,5.16265574,87.94,87.921,4.08506492]
[1770577155697,8.03283946,87.94,87.921,4.08506492]
[1770577155895,2.87018372,87.939,87.915,4.08506492]
[1770577157200,14.23629774,87.938,87.915,4.08506492]
[1770577157906,2.85917893,87.937,87.915,4.08506492]
[1770577158213,5.16265574,87.93,87.915,4.08506492]
[1770577158510,2.85917893,87.937,87.915,4.08506492]
[1770577158892,5.16265574,87.93,87.91,4.18506492]
[1770577159099,2.85377116,87.929,87.91,0.1]
[1770577159700,2.85377116,87.929,87.91,4.18506492]
[1770577160594,2.85377116,87.929,87.91,0.1]
[1770577160918,11.37294149,87.928,87.91,4.18506492]
[1770577161218,2.74352601,87.954,87.911,4.08506492]
[1770577161517,5.16265574,87.95,87.911,4.08506492]
[1770577161715,11.37022592,87.949,87.912,11.37501137]
[1770577162015,11.37022592,87.949,87.913,4.08506492]
[1770577162405,5.16265574,87.96,87.921,4.08506492]
[1770577162917,2.73868279,87.961,87.921,4.08506492]
[1770577163816,2.73868279,87.961,87.923,4.08506492]
[1770577164209,11.3683209,87.964,87.923,4.08506492]
[1770577164409,11.36802855,87.966,87.931,4.08506492]
[1770577165522,2.72432505,87.959,87.931,4.08506492]
[1770577166213,5.16265574,87.95,87.931,4.08506492]
[1770577166390,2.71954306,87.95,87.931,4.08506492]
[1770577167712,2.71014324,87.948,87.921,4.08506492]
[1770577169417,11.37048449,87.947,87.921,4.08506492]
[1770577170819,5.16265574,87.95,87.923,4.08506492]
[1770577171018,11.36970192,87.954,87.923,4.08506492]
[1770577171819,5.16265574,87.95,87.923,4.08506492]
[1770577172217,2.69198275,87.953,87.923,4.08506492]
[1770577173411,7.85022799,87.95,87.923,4.08506492]
[1770577173813,19.22033212,87.95,87.923,4.08506492]
[1770577174027,11.3695695,87.955,87.923,4.08506492]
[1770577175323,14.04847214,87.955,87.923,4.08506492]
[1770577176319,2.67464237,87.958,87.923,4.08506492]
[1770577176823,2.67043104,87.949,87.923,4.08506492]
[1770577178428,2.66626807,87.947,87.923,4.08506492]
[1770577180625,11.3703552,87.948,87.919,4.08506492]
[1770577181130,2.65406389,87.947,87.912,11.37501137]
[1770577181317,2.65406389,87.947,87.913,4.08506492]
[1770577182418,39.79624322,87.948,87.911,10.6]
[1770577182419,11.3703552,87.948,87.921,4.08506492]
[1770577182936,11.3703552,87.948,87.922,4.08506492]
[1770577183642,11.3703552,87.948,87.911,10.6]
[1770577183643,2.64227543,87.947,87.911,10.6]
[1770577183845,2.64227543,87.939,87.912,4.08506492]
[1770577184727,2.63843586,87.937,87.912,4.08506492]
[1770577187138,2.62717975,87.935,87.912,4.08506492]
[1770577189741,11.37190684,87.936,87.912,4.08506492]
[1770577191748,13.98117198,87.936,87.912,4.08506492]
[1770577192225,11.37216548,87.934,87.912,4.08506492]
[1770577194123,2.60238407,87.929,87.91,0.1]
[1770577196242,11.37294149,87.928,87.91,0.1]
[1770577196449,2.59566015,87.927,87.91,0.1]
[1770577197845,11.37320019,87.926,87.91,0.1]
[1770577198635,5.17531914,87.92,87.91,0.1]
[1770577198944,2.58586114,87.919,87.898,3.96492519]
[1770577199841,11.37410571,87.919,87.898,3.96492519]
[1770577201355,2.47951461,87.939,87.898,3.96492519]
[1770577201543,2.47951461,87.939,87.901,3.96492519]
[1770577201943,13.84804411,87.938,87.901,3.96492519]
[1770577202241,2.47639591,87.932,87.901,3.96492519]
[1770577202440,5.17531914,87.93,87.901,3.96492519]